bitfinex-derivatives/quotes_ETHF0:USTF0_20230903
["timestamp","ask_amount","ask_price","bid_price","bid_amount"]
[1693761641560,13.7409899,1629.4,1629.3,5.534]
[1693761641766,19.2749899,1629.4,1629.1,6.03437763]
[1693761641961,12.27768,1629.2,1629.1,6.03437763]
[1693761642159,13.6812099,1629.2,1629.1,9.10396763]
[1693761643071,13.6812099,1629.2,1629.1,6.03437763]
[1693761643365,13.6812099,1629.2,1629.1,9.10398763]
[1693761645960,13.6812099,1629.2,1629.1,12.17359763]
[1693761647270,13.7425099,1629.2,1629.1,0.50037763]
[1693761647466,13.7425099,1629.2,1629.0,5.54320726]
[1693761647467,0.0613,1629.1,1629.0,5.54320726]
[1693761647671,15.20690352,1629.1,1629.0,5.54320726]
[1693761647965,17.74880352,1629.1,1629.0,5.54320726]
[1693761648666,23.28280352,1629.1,1629.0,0.00920726]
[1693761661879,1.4035299,1629.0,1628.7,21.8926]
[1693761662074,1.4035299,1629.0,1628.7,7.9346]
[1693761662075,15.14708352,1628.9,1628.7,7.9346]
[1693761662379,1.4035299,1628.8,1628.7,7.9346]
[1693761662679,13.6842099,1628.8,1628.7,7.9346]
[1693761663279,13.6842099,1628.8,1628.7,2.4006]
[1693761664681,13.6842099,1628.8,1628.7,2.89506897]
[1693761664875,13.6842099,1628.8,1628.6,11.67498]
[1693761665275,2.86716352,1628.7,1628.6,12.15913013]
[1693761665476,15.14860352,1628.7,1628.6,12.15913013]
[1693761667581,20.68260352,1628.7,1628.6,0.48415013]
[1693761667776,20.68260352,1628.7,1628.5,2.5767]
[1693761667974,20.68260352,1628.7,1628.4,8.62215]
[1693761667975,1.4035299,1628.6,1628.4,8.62215]
[1693761668177,1.4035299,1628.6,1628.4,14.15615]
[1693761668178,12.07938352,1628.5,1628.4,14.15615]
[1693761669182,15.15012352,1628.5,1628.4,11.08525]
[1693761669680,15.15012352,1628.5,1628.4,11.56901732]
[1693761669873,15.15012352,1628.5,1628.4,8.49816732]
[1693761670576,15.15012352,1628.5,1628.4,14.67004839]
[1693761670777,15.15012352,1628.5,1628.4,14.64002732]
[1693761671382,15.15012352,1628.5,1628.4,14.67004839]
[1693761671880,11.36152935,1628.5,1628.4,14.67004839]
[1693761673183,14.22869287,1628.5,1628.4,14.64002732]
[1693761673491,14.22869287,1628.5,1628.4,16.27877447]
[1693761673686,14.22869287,1628.5,1628.4,14.67004839]
[1693761674186,11.36152935,1628.5,1628.4,16.27877447]
[1693761674383,14.22869287,1628.5,1628.4,0.48376732]
[1693761674579,14.22869287,1628.5,1628.4,1.60872608]
[1693761675077,14.22869287,1628.5,1628.3,24.42896507]
[1693761675274,14.22869287,1628.5,1628.3,21.35789507]
[1693761675584,14.22869287,1628.5,1628.4,1.60872608]
[1693761675984,15.63222277,1628.5,1628.4,7.78058715]
[1693761676181,9.69431925,1628.5,1628.4,13.31458715]
[1693761676580,8.29078935,1628.5,1628.4,14.77678107]
[1693761680489,8.29078935,1628.5,1628.4,16.38550715]
[1693761681689,8.29078935,1628.5,1628.4,16.38076064]
[1693761682581,11.15795287,1628.5,1628.4,16.38076064]
[1693761682782,11.15795287,1628.5,1628.4,19.45221132]
[1693761683288,8.29078935,1628.5,1628.4,19.45221132]
[1693761683689,8.29078935,1628.5,1628.4,20.25420111]
[1693761683891,11.15795287,1628.5,1628.4,20.25420111]
[1693761684083,8.29078935,1628.5,1628.4,20.25420111]
[1693761684889,7.85646425,1628.5,1628.4,20.25420111]
[1693761687799,10.72362777,1628.5,1628.4,20.25420111]
[1693761688503,10.72362777,1628.5,1628.4,20.22418004]
[1693761689194,13.79436777,1628.5,1628.4,8.54834004]
[1693761689400,13.79436777,1628.5,1628.4,5.47742004]
[1693761689597,16.31926777,1628.5,1628.4,5.47742004]
[1693761692102,16.31926777,1628.5,1628.4,8.54835004]
[1693761693302,21.85326777,1628.5,1628.4,8.54835004]
[1693761693603,21.85326777,1628.5,1628.4,10.15501699]
[1693761694497,21.85326777,1628.5,1628.4,7.74904763]
[1693761694696,21.85326777,1628.5,1628.4,10.15501699]
[1693761695201,21.85326777,1628.5,1628.4,13.22594699]
[1693761695701,21.85326777,1628.5,1628.4,10.81997763]
[1693761696302,21.85326777,1628.5,1628.4,7.74852695]
[1693761697509,21.85326777,1628.5,1628.4,6.14186]
[1693761697696,21.85326777,1628.5,1628.4,7.74852695]
[1693761698604,1.71498425,1628.5,1628.4,19.51580802]
[1693761698803,4.78572425,1628.5,1628.4,22.58731185]
[1693761699597,4.78572425,1628.5,1628.4,19.51580802]
[1693761700102,4.78572425,1628.5,1628.4,22.58726114]
[1693761700497,4.78572425,1628.5,1628.4,19.51580802]
[1693761700897,7.85646425,1628.5,1628.4,19.51580802]
[1693761702701,7.85646425,1628.5,1628.4,16.44487802]
[1693761706512,7.85646425,1628.5,1628.4,14.83821107]
[1693761706703,7.85646425,1628.5,1628.4,16.44487802]
[1693761706903,7.85646425,1628.5,1628.4,14.83821107]
[1693761715909,4.78572425,1628.5,1628.4,17.90914107]
[1693761716115,9.21197,1628.6,1628.5,0.0614]
[1693761716421,9.21197,1628.6,1628.5,14.80762]
[1693761716611,9.21197,1628.6,1628.5,17.07755648]
[1693761729828,9.21197,1628.6,1628.5,17.57654905]
[1693761732422,9.21197,1628.6,1628.5,14.50580905]
[1693761734526,8.69629,1628.7,1628.5,20.64728905]
[1693761734733,6.14079,1628.7,1628.6,5.56402107]
[1693761734934,9.21124,1628.7,1628.6,15.25032372]
[1693761751546,9.21124,1628.7,1628.6,14.77546107]
[1693761767057,12.07840352,1628.7,1628.6,14.77546107]
[1693761767555,9.21124,1628.7,1628.6,14.77546107]
[1693761773557,12.07840352,1628.7,1628.6,14.77546107]
[1693761773758,12.07840352,1628.7,1628.6,14.74544]
[1693761773957,12.07840352,1628.7,1628.6,14.77546107]
[1693761774855,9.21124,1628.7,1628.6,14.77546107]
[1693761787256,12.07840352,1628.7,1628.6,14.74544]
[1693761788262,9.21124,1628.7,1628.6,14.77546107]
[1693761790257,12.07840352,1628.7,1628.6,8.60448]
[1693761790559,15.14885352,1628.7,1628.6,5.534]
[1693761790765,15.14885352,1628.7,1628.5,15.30643257]
[1693761791061,1.4035299,1628.6,1628.5,15.30643257]
[1693761791261,10.6151799,1628.6,1628.5,15.33645364]
[1693761791463,13.1985799,1628.6,1628.5,15.33645364]
[1693761794769,11.79505,1628.6,1628.5,15.33645364]
[1693761804474,11.79505,1628.6,1628.5,16.94675214]
[1693761806378,11.79505,1628.6,1628.5,20.01805617]
[1693761807078,11.79505,1628.6,1628.5,16.94675214]
[1693761809977,14.66221352,1628.6,1628.5,16.91673107]
[1693761810369,11.79505,1628.6,1628.5,16.94675214]
[1693761811482,11.79505,1628.6,1628.5,15.33645364]
[1693761819490,11.79505,1628.6,1628.5,16.94675214]
[1693761825494,11.79505,1628.6,1628.5,16.94802282]
[1693761826493,11.79505,1628.6,1628.5,15.33645364]
[1693761830493,6.1411,1628.6,1628.5,15.33645364]
[1693761830694,8.0855,1628.8,1628.5,20.01876282]
[1693761830695,5.52613,1628.8,1628.5,20.01876282]
[1693761830892,6.14944952,1628.9,1628.7,5.534]
[1693761831092,6.14944952,1628.9,1628.8,14.74454]
[1693761831301,6.14944952,1628.9,1628.8,14.77456107]
[1693761831501,6.14944952,1628.9,1628.8,17.04449755]
[1693761832196,6.14944952,1628.9,1628.8,20.11467755]
[1693761835294,9.21950952,1628.9,1628.8,17.04449755]
[1693761835495,9.21950952,1628.9,1628.8,11.70438107]
[1693761838103,9.21950952,1628.9,1628.8,14.77459107]
[1693761840008,9.21950952,1628.9,1628.8,15.25921471]
[1693761865233,12.08667304,1628.9,1628.8,15.25921471]
[1693761866032,9.21950952,1628.9,1628.8,15.25921471]
[1693761866427,12.08667304,1628.9,1628.8,15.25921471]
[1693761866831,9.21950952,1628.9,1628.8,15.25921471]
[1693761868133,12.08667304,1628.9,1628.8,15.25921471]
[1693761869434,9.21950952,1628.9,1628.8,15.25921471]
[1693761870837,12.08667304,1628.9,1628.8,15.25921471]
[1693761872042,9.21950952,1628.9,1628.8,15.25921471]
[1693761876134,12.08667304,1628.9,1628.8,15.22919364]
[1693761876338,12.08667304,1628.9,1628.8,15.25921471]
[1693761876540,9.21950952,1628.9,1628.8,15.25921471]
[1693761878240,12.08667304,1628.9,1628.8,15.22919364]
[1693761878635,12.08667304,1628.9,1628.8,15.25921471]
[1693761880540,12.08667304,1628.9,1628.8,15.22919364]
[1693761881139,12.08667304,1628.9,1628.8,15.25921471]
[1693761882635,12.08667304,1628.9,1628.8,15.22919364]
[1693761883941,9.21950952,1628.9,1628.8,15.25921471]
[1693761884244,12.08667304,1628.9,1628.8,15.25921471]
[1693761885342,9.21950952,1628.9,1628.8,15.25921471]
[1693761887339,12.08667304,1628.9,1628.8,15.22919364]
[1693761887740,12.08667304,1628.9,1628.8,15.25921471]
[1693761888540,9.21950952,1628.9,1628.8,15.25921471]
[1693761894452,12.08667304,1628.9,1628.8,15.25921471]
[1693761894853,12.08667304,1628.9,1628.8,12.18900471]
[1693761895354,9.21950952,1628.9,1628.8,12.18900471]
[1693761895554,12.08667304,1628.9,1628.8,12.18900471]
[1693761896058,12.08667304,1628.9,1628.8,12.15898364]
[1693761897860,12.08667304,1628.9,1628.8,12.18900471]
[1693761898656,9.21950952,1628.9,1628.8,12.18900471]
[1693761901159,12.08667304,1628.9,1628.8,12.18900471]
[1693761902762,9.21950952,1628.9,1628.8,12.18900471]
[1693761905969,12.08667304,1628.9,1628.8,12.18900471]
[1693761906879,9.21950952,1628.9,1628.8,12.18900471]
[1693761914381,9.21950952,1628.9,1628.8,15.25920471]
[1693761925094,9.21950952,1628.9,1628.8,12.18900471]
[1693761928099,9.21950952,1628.9,1628.8,15.25918471]
[1693761930289,9.21950952,1628.9,1628.8,12.18900471]
[1693761931094,9.21950952,1628.9,1628.8,15.25925471]
[1693761931395,12.28956952,1628.9,1628.8,12.18900471]
[1693761932201,12.28956952,1628.9,1628.8,15.25921471]
[1693761934101,9.21942952,1628.9,1628.8,15.25921471]
[1693761935205,9.21942952,1628.9,1628.8,15.25927471]
[1693761935903,9.21942952,1628.9,1628.8,12.18900471]
[1693761936401,9.21942952,1628.9,1628.8,15.25931471]
[1693761937000,9.21942952,1628.9,1628.8,12.18900471]
[1693761937199,9.21942952,1628.9,1628.8,15.25927471]
[1693761951909,9.21942952,1628.9,1628.8,9.11882471]
[1693761952112,20.69066304,1628.9,1628.6,8.60453]
[1693761952309,6.9375299,1628.8,1628.5,6.70183257]
[1693761952615,17.81652,1628.6,1628.5,0.49899257]
[1693761952913,19.2200499,1628.6,1628.4,6.14184]
[1693761953108,2.86716352,1628.5,1628.4,3.0709]
[1693761953414,15.15044352,1628.5,1628.4,3.0709]
[1693761954003,15.15044352,1628.5,1628.3,18.57789812]
[1693761954207,15.15044352,1628.5,1628.3,19.06902273]
[1693761954403,1.4035299,1628.4,1628.3,19.06902273]
[1693761954612,10.6165599,1628.4,1628.3,19.9944572]
[1693761955314,10.6165599,1628.4,1628.3,20.02447827]
[1693761960215,10.6165599,1628.4,1628.3,19.0990438]
[1693761961815,10.6165599,1628.4,1628.3,19.06902273]
[1693761966024,10.6165599,1628.4,1628.3,6.92802539]
[1693761966222,13.6875699,1628.4,1628.3,3.85691539]
[1693761966523,16.2220699,1628.4,1628.3,6.92811539]
[1693761967116,16.2220699,1628.4,1628.3,3.85691539]
[1693761967316,21.7560699,1628.4,1628.1,6.14297]
[1693761967522,5.534,1628.2,1628.0,20.0726827]
[1693761967727,17.82013,1628.2,1628.1,6.14304]
[1693761967922,23.19169352,1628.2,1628.1,6.14304]
[1693761968123,23.19169352,1628.2,1628.1,3.07157]
[1693761968623,24.59522342,1628.2,1628.1,3.07157]
[1693761969624,24.59522342,1628.2,1628.0,3.07175]
[1693761969828,5.534,1628.1,1627.9,3.07185]
[1693761970030,5.534,1628.1,1627.9,6.14373]
[1693761970031,16.55773342,1628.0,1627.9,6.14373]
[1693761970533,18.94663342,1628.0,1627.9,6.14373]
[1693761971334,24.48063342,1628.0,1627.7,9.21676]
[1693761971531,9.21642,1627.8,1627.7,9.21676]
[1693761971836,13.48711342,1627.8,1627.7,9.21676]
[1693761972433,13.48711342,1627.8,1627.7,9.71584743]
[1693761972835,13.48711342,1627.8,1627.7,6.64358743]
[1693761974543,13.48711342,1627.8,1627.7,6.6736085]
[1693761974544,12.56532596,1627.8,1627.7,6.6736085]
[1693761974847,12.56532596,1627.8,1627.7,6.64358743]
[1693761975143,12.56532596,1627.8,1627.7,8.25515661]
[1693761975535,12.56532596,1627.8,1627.7,9.71591743]
[1693761976240,12.56532596,1627.8,1627.7,11.32041513]
[1693761977346,12.56532596,1627.8,1627.7,11.3504362]
[1693761977541,12.56532596,1627.8,1627.7,11.32041513]
[1693761979147,12.56532596,1627.8,1627.7,14.39305015]
[1693761979343,12.56532596,1627.8,1627.7,8.24808513]
[1693761980148,15.63746596,1627.8,1627.7,8.24808513]
[1693761980652,15.63746596,1627.8,1627.7,5.17582513]
[1693761981545,15.63746596,1627.8,1627.7,3.57132743]
[1693761982147,15.63746596,1627.8,1627.7,5.17582513]
[1693761983052,18.03556596,1627.8,1627.7,5.17582513]
[1693761983254,23.56956596,1627.8,1627.7,5.17582513]
[1693761984151,24.49135342,1627.8,1627.7,5.17582513]
[1693761984547,24.49135342,1627.8,1627.7,8.24864517]
[1693761985047,24.49135342,1627.8,1627.7,10.65539172]
[1693761985947,24.49135342,1627.8,1627.7,5.17582513]
[1693761986148,24.49135342,1627.8,1627.7,8.24873876]
[1693761986649,24.49135342,1627.8,1627.7,8.27875983]
[1693761986845,11.61452,1627.8,1627.7,11.35108983]
[1693761987051,3.07183,1628.0,1627.8,2.15084714]
[1693761987052,3.07186,1628.0,1627.8,2.15084714]
[1693761987252,6.14382,1628.0,1627.9,7.16600679]
[1693761987452,9.21571,1628.0,1627.9,24.12732932]
[1693761989353,9.21571,1628.0,1627.9,24.12755803]
[1693761990556,9.21571,1628.0,1627.9,24.12790614]
[1693761990755,9.21571,1628.0,1627.9,22.5253436]
[1693761991358,9.21571,1628.0,1627.9,22.5867436]
[1693761991953,12.08287352,1628.0,1627.9,22.5867436]
[1693761992552,12.08287352,1628.0,1627.9,22.55672253]
[1693761994261,12.08287352,1628.0,1627.9,20.28678605]
[1693761994557,17.61276352,1628.0,1627.9,20.28678605]
[1693761994854,17.61276352,1628.0,1627.9,17.21482605]
[1693761996654,17.61276352,1628.0,1627.9,17.21889238]
[1693761997253,17.61276352,1628.0,1627.9,14.14693238]
[1693762001659,14.7456,1628.0,1627.9,14.17695345]
[1693762002065,17.61276352,1628.0,1627.9,14.17695345]
[1693762002570,9.21564,1628.0,1627.9,20.32087345]
[1693762004269,9.21564,1628.0,1627.9,17.24891345]
[1693762004566,9.21564,1628.0,1627.9,17.72944441]
[1693762005768,12.08280352,1628.0,1627.9,17.72944441]
[1693762006264,9.21564,1628.0,1627.9,17.72944441]
[1693762006766,12.08280352,1628.0,1627.9,19.33677884]
[1693762007670,12.08280352,1628.0,1627.9,16.92973393]
[1693762007870,12.08280352,1628.0,1627.9,19.33677884]
[1693762008070,12.08280352,1628.0,1627.9,19.30675777]
[1693762008471,15.15469352,1628.0,1627.9,19.30675777]
[1693762008772,15.15469352,1628.0,1627.9,13.82775286]
[1693762008964,15.15469352,1628.0,1627.9,4.6798619]
[1693762009667,15.15469352,1628.0,1627.9,1.60733443]
[1693762011674,15.15469352,1628.0,1627.8,20.76419934]
[1693762011972,1.4035299,1627.9,1627.8,18.35715443]
[1693762012173,10.6194099,1627.9,1627.8,23.83682842]
[1693762012373,16.2551699,1627.9,1627.8,23.83682842]
[1693762012771,16.2551699,1627.9,1627.8,21.42978351]
[1693762013079,16.2551699,1627.9,1627.8,23.83682842]
[1693762014578,16.2551699,1627.9,1627.8,21.28842842]
[1693762014779,16.2551699,1627.9,1627.8,18.88138351]
[1693762016379,16.2551699,1627.9,1627.8,18.91140458]
[1693762016681,16.2551699,1627.9,1627.8,15.8387755]
[1693762018683,16.2551699,1627.9,1627.8,14.23144107]
[1693762019880,16.2551699,1627.9,1627.8,14.20142]
[1693762020985,16.2551699,1627.9,1627.8,14.23144107]
[1693762022185,14.85164,1627.9,1627.8,14.23144107]
[1693762023281,14.85164,1627.9,1627.8,17.30359107]
[1693762033899,14.85164,1627.9,1627.8,17.27357]
[1693762034295,14.85164,1627.9,1627.8,17.30359107]
[1693762039198,14.85164,1627.9,1627.8,14.23144107]
[1693762039402,14.85164,1627.9,1627.8,14.20142]
[1693762041405,14.85164,1627.9,1627.8,14.23144107]
[1693762041806,14.85164,1627.9,1627.8,14.20142]
[1693762042506,14.85164,1627.9,1627.8,11.12933]
[1693762044609,14.85164,1627.9,1627.8,11.15935107]
[1693762048513,14.85164,1627.9,1627.8,14.23150107]
[1693762052109,14.85164,1627.9,1627.8,14.20148]
[1693762052611,14.85164,1627.9,1627.8,14.23150107]
[1693762055810,14.85164,1627.9,1627.7,12.17757743]
[1693762056016,2.86716352,1627.8,1627.7,12.17757743]
[1693762056211,15.15576352,1627.8,1627.7,12.17757743]
[1693762056409,12.2886,1627.8,1627.7,12.2075985]
[1693762059017,9.21645,1627.8,1627.7,12.2075985]
[1693762059217,9.21645,1627.8,1627.7,15.2799385]
[1693762061715,9.21645,1627.8,1627.7,18.3522785]
[1693762061716,6.1443,1627.8,1627.7,18.3522785]
[1693762061921,6.14413,1627.9,1627.7,18.3522785]
[1693762062114,9.21625,1627.9,1627.8,7.80393648]
[1693762062412,9.21625,1627.9,1627.8,17.02038648]
[1693762066416,6.14375,1628.0,1627.8,20.09253648]
[1693762066626,6.15253404,1628.1,1628.0,0.0614]
[1693762066919,3.08087404,1628.1,1628.0,20.15241648]
[1693762069022,6.15249404,1628.1,1628.0,20.15241648]
[1693762070118,2.88543979,1628.2,1628.1,0.03002107]
[1693762070320,21.91316659,1628.4,1628.1,23.35432]
[1693762070523,3.07101,1628.4,1628.3,5.534]
[1693762070728,6.14202,1628.4,1628.3,14.77762107]
[1693762072321,9.21314,1628.4,1628.3,14.77762107]
[1693762076828,2.5014,1628.5,1628.3,5.56402107]
[1693762077131,2.5014,1628.5,1628.4,5.534]
[1693762078725,2.5014,1628.5,1628.4,7.80393648]
[1693762088228,5.36856352,1628.5,1628.4,7.80393648]
[1693762088922,2.5014,1628.5,1628.4,7.80393648]
[1693762089730,5.36856352,1628.5,1628.4,7.80393648]
[1693762089927,2.5014,1628.5,1628.4,7.80393648]
[1693762090535,5.36856352,1628.5,1628.4,7.80393648]
[1693762092332,2.5014,1628.5,1628.4,7.80393648]
[1693762105244,10.90256352,1628.5,1628.3,0.0092112]
[1693762105545,6.9375299,1628.4,1628.3,0.0092112]
[1693762105745,2.86716352,1628.3,1628.1,5.534]
[1693762105946,1.4035299,1628.2,1628.1,5.534]
[1693762106736,1.4035299,1628.2,1628.1,5.56402107]
[1693762106937,13.6892499,1628.2,1628.1,8.63564107]
[1693762107242,13.6892499,1628.2,1628.1,8.60562]
[1693762107746,13.6892499,1628.2,1628.1,11.67724]
[1693762108247,13.6892499,1628.2,1628.1,11.70726107]
[1693762109142,13.6892499,1628.2,1628.1,11.67724]
[1693762110446,13.6892499,1628.2,1628.0,12.16163316]
[1693762110641,2.86716352,1628.1,1628.0,12.16163316]
[1693762110844,2.86716352,1628.1,1628.0,12.19165423]
[1693762111744,6.8670599,1628.2,1628.0,12.19165423]
[1693762112651,9.73422342,1628.2,1628.0,12.19165423]
[1693762116356,6.66279342,1628.2,1628.0,12.19165423]
[1693762118764,6.66279342,1628.2,1628.0,12.25305423]
[1693762118963,9.21486,1628.1,1628.0,15.32486423]
[1693762124062,6.14324,1628.1,1628.0,18.39667423]
[1693762124265,3.07153,1628.2,1628.0,18.39667423]
[1693762124460,3.07153,1628.2,1628.1,7.80393648]
[1693762124659,6.14306,1628.2,1628.1,17.01879648]
[1693762126964,9.21459,1628.2,1628.1,17.01879648]
[1693762136080,12.08175352,1628.2,1628.1,14.74886]
[1693762137172,12.08175352,1628.2,1628.1,11.67724]
[1693762138170,9.21459,1628.2,1628.1,11.67724]
[1693762139277,12.08175352,1628.2,1628.1,11.67724]
[1693762139471,15.15328352,1628.2,1628.1,11.67724]
[1693762141177,15.15328352,1628.2,1628.1,5.534]
[1693762142476,15.15328352,1628.2,1628.1,8.60562]
[1693762142773,9.21459,1628.2,1628.1,14.77888107]
[1693762143872,6.14306,1628.2,1628.1,14.77888107]
[1693762144073,9.21449,1628.2,1628.1,14.77888107]
[1693762144274,12.08165352,1628.2,1628.1,14.74886]
[1693762145181,12.08165352,1628.2,1628.1,11.67724]
[1693762147283,15.15308352,1628.2,1628.1,11.67724]
[1693762147881,30.8773209,1628.2,1628.1,11.67724]
[1693762148384,15.15308352,1628.2,1628.1,11.67724]
[1693762148980,15.15308352,1628.2,1628.1,6.14324]
[1693762149182,15.15308352,1628.2,1628.1,11.67724]
[1693762150285,30.87756267,1628.2,1628.1,11.67724]
[1693762151284,28.01039915,1628.2,1628.1,11.70726107]
[1693762151590,30.87756267,1628.2,1628.1,11.70726107]
[1693762152993,30.87756267,1628.2,1628.1,11.67724]
[1693762153293,30.87756267,1628.2,1628.1,11.70726107]
[1693762153793,30.87756267,1628.2,1628.1,11.67724]
[1693762155199,30.87756267,1628.2,1628.1,11.70726107]
[1693762155595,30.87756267,1628.2,1628.1,11.67724]
[1693762155796,30.87756267,1628.2,1628.1,11.70726107]
[1693762156095,30.87756267,1628.2,1628.1,8.63564107]
[1693762156299,30.87756267,1628.2,1628.1,8.60562]
[1693762157398,30.87756267,1628.2,1628.1,8.63564107]
[1693762157597,30.87756267,1628.2,1628.1,8.60562]
[1693762157999,30.87756267,1628.2,1628.1,8.63564107]
[1693762158692,30.88044595,1628.2,1628.1,8.63564107]
[1693762158898,30.88044595,1628.2,1628.1,11.70726107]
[1693762159200,28.01328243,1628.2,1628.1,13.97719755]
[1693762159497,12.28592,1628.2,1628.1,13.97719755]
[1693762164204,12.28592,1628.2,1628.1,10.90557755]
[1693762164896,12.28592,1628.2,1628.1,8.63564107]
[1693762165198,15.15308352,1628.2,1628.1,8.63564107]
[1693762167605,15.15308352,1628.2,1628.1,5.56402107]
[1693762167911,15.15308352,1628.2,1627.9,8.59986]
[1693762167912,20.68708352,1628.2,1627.9,8.59986]
[1693762168112,1.4035299,1628.1,1627.9,14.13386]
[1693762168307,9.21543,1628.0,1627.9,14.63185363]
[1693762168610,9.21543,1628.0,1627.9,14.6618747]
[1693762170117,9.21543,1628.0,1627.9,17.7338747]
[1693762171017,9.21543,1628.0,1627.9,20.00381118]
[1693762179519,6.14362,1628.0,1627.9,20.00381118]
[1693762179824,6.14309,1628.2,1628.0,0.0614]
[1693762180015,3.07163,1628.1,1628.0,12.34796]
[1693762180222,3.07163,1628.1,1628.0,17.88196]
[1693762180616,3.07163,1628.1,1628.0,20.18191755]
[1693762181020,6.14326,1628.1,1628.0,20.18191755]
[1693762181620,3.07163,1628.1,1628.0,20.18191755]
[1693762181822,6.14326,1628.1,1628.0,20.18191755]
[1693762184324,3.07163,1628.1,1628.0,20.18191755]
[1693762184533,6.14277,1628.3,1628.0,20.18191755]
[1693762184731,6.14277,1628.3,1628.2,5.534]
[1693762184924,9.21418,1628.3,1628.2,14.74829]
[1693762185124,9.21418,1628.3,1628.2,17.04824755]
[1693762189137,12.28559,1628.3,1628.2,13.97681755]
[1693762192328,14.81879,1628.3,1628.2,13.97681755]
[1693762193831,11.74738,1628.3,1628.2,13.97681755]
[1693762197240,14.81879,1628.3,1628.2,13.97681755]
[1693762197542,17.68595352,1628.3,1628.2,11.70688107]
[1693762199039,14.81879,1628.3,1628.2,11.70688107]
[1693762199630,14.81879,1628.3,1628.2,12.1910414]
[1693762199835,14.81879,1628.3,1628.2,5.534]
[1693762199836,17.68595352,1628.3,1628.2,5.534]
[1693762203241,17.68595352,1628.3,1628.1,8.60553]
[1693762203743,17.68595352,1628.3,1628.1,8.63555107]
[1693762204231,17.68595352,1628.3,1628.1,11.70713107]
[1693762205042,1.4035299,1628.2,1628.1,11.67711]
[1693762205234,13.6890099,1628.2,1628.1,8.60553]
[1693762205744,13.6890099,1628.2,1628.1,8.63555107]
[1693762205939,13.6890099,1628.2,1628.1,8.60553]
[1693762206239,13.6890099,1628.2,1628.1,8.63555107]
[1693762206448,6.14274,1628.2,1628.1,14.74873]
[1693762206742,6.14266,1628.2,1628.1,17.85035107]
[1693762207141,9.21399,1628.2,1628.1,14.77875107]
[1693762207348,12.08115352,1628.2,1628.1,14.74873]
[1693762207647,12.08115352,1628.2,1628.1,14.77875107]
[1693762208850,9.21399,1628.2,1628.1,14.77875107]
[1693762217749,9.21399,1628.2,1628.1,15.27754672]
[1693762225350,21.86673436,1628.4,1628.1,23.88314672]
[1693762225548,6.14216,1628.4,1628.3,5.534]
[1693762225752,6.14216,1628.4,1628.3,15.24881579]
[1693762225943,6.14216,1628.4,1628.3,15.27883686]
[1693762226154,9.21324,1628.4,1628.3,15.27883686]
[1693762231460,6.14214,1628.4,1628.3,18.35000686]
[1693762232458,6.14214,1628.4,1628.3,19.9613065]
[1693762234861,6.1505012,1628.6,1628.3,26.90974379]
[1693762235161,6.1505012,1628.6,1628.5,19.48790683]
[1693762235657,6.1505012,1628.6,1628.5,17.87856]
[1693762235858,6.1505012,1628.6,1628.5,17.90858107]
[1693762236155,6.2118012,1628.6,1628.5,17.90858107]
[1693762236563,6.1505012,1628.6,1628.5,17.90858107]
[1693762245967,12.08830472,1628.6,1628.5,17.90858107]
[1693762246159,11.6094412,1628.6,1628.5,17.90858107]
[1693762248763,11.6094412,1628.6,1628.5,18.40357485]
[1693762255175,8.5387912,1628.6,1628.5,18.40357485]
[1693762257277,11.6094312,1628.6,1628.5,18.40357485]
[1693762267482,11.6094312,1628.6,1628.5,20.01019345]
[1693762267684,11.6094312,1628.6,1628.5,18.40357485]
[1693762268583,11.6094312,1628.6,1628.5,20.01019345]
[1693762269082,6.1504912,1628.6,1628.5,20.01019345]
[1693762270788,6.1504912,1628.6,1628.5,18.40357485]
[1693762271490,0.0092112,1628.6,1628.5,18.40357485]
[1693762271890,0.0092112,1628.6,1628.5,20.92137485]
[1693762272486,0.0092112,1628.6,1628.5,22.52799345]
[1693762272687,6.1504112,1628.6,1628.5,22.52799345]
[1693762274394,6.1504112,1628.6,1628.5,20.92137485]
[1693762276497,6.1504112,1628.6,1628.5,22.53178006]
[1693762277696,6.1504112,1628.6,1628.5,20.92137485]
[1693762277995,6.1504112,1628.6,1628.5,25.60304738]
[1693762279595,6.1504112,1628.6,1628.5,22.53178006]
[1693762280193,6.1504112,1628.6,1628.5,25.60305317]
[1693762280398,6.1504112,1628.6,1628.5,22.53178006]
[1693762285799,6.1504112,1628.6,1628.5,20.92137485]
[1693762290600,8.7639112,1628.6,1628.5,20.92137485]
[1693762293008,8.7639112,1628.6,1628.5,22.53178006]
[1693762293308,8.7639112,1628.6,1628.5,25.60305199]
[1693762301011,8.7639112,1628.6,1628.5,20.92137485]
[1693762316518,0.0092112,1628.6,1628.5,20.92137485]
[1693762316723,6.14106,1628.7,1628.6,7.80393648]
[1693762316924,6.14106,1628.7,1628.6,20.08633648]
[1693762321431,8.023,1628.8,1628.6,21.69807465]
[1693762321432,8.58002,1628.8,1628.6,21.69807465]
[1693762321730,8.58002,1628.8,1628.7,5.56402107]
[1693762321926,8.58002,1628.8,1628.7,14.77525107]
[1693762322230,8.58002,1628.8,1628.7,17.84566107]
[1693762323536,17.58780352,1628.8,1628.7,5.534]
[1693762326833,33.2186679,1628.8,1628.7,5.534]
[1693762330128,33.2186679,1628.8,1628.7,6.02003227]
[1693762331335,33.2186679,1628.8,1628.7,9.09044227]
[1693762334338,30.1483479,1628.8,1628.7,9.09044227]
[1693762334538,14.51748352,1628.8,1628.7,12.16085227]
[1693762338550,14.51748352,1628.8,1628.7,12.19087334]
[1693762339046,14.51748352,1628.8,1628.7,15.26128334]
[1693762339249,8.58001,1628.8,1628.7,15.26128334]
[1693762339643,11.65023,1628.8,1628.7,15.26128334]
[1693762340048,8.57992,1628.8,1628.7,15.26128334]
[1693762340352,11.65014,1628.8,1628.7,15.26128334]
[1693762340655,8.57984,1628.8,1628.7,15.26128334]
[1693762341852,11.65006,1628.8,1628.7,15.26128334]
[1693762342053,8.57984,1628.8,1628.7,15.26128334]
[1693762342552,11.65006,1628.8,1628.7,15.26128334]
[1693762342948,8.57984,1628.8,1628.7,15.26128334]
[1693762344241,11.65006,1628.8,1628.7,15.26128334]
[1693762344444,8.57984,1628.8,1628.7,15.26128334]
[1693762344841,6.14044,1628.8,1628.7,15.26128334]
[1693762347353,9.21066,1628.8,1628.7,15.26128334]
[1693762349152,6.14044,1628.8,1628.7,15.26128334]
[1693762349455,19.27470533,1629.1,1628.9,9.21009]
[1693762349456,21.78967482,1629.1,1628.9,9.21009]
[1693762349649,21.78967482,1629.1,1629.0,14.77357107]
[1693762349650,9.20943,1629.1,1629.0,14.77357107]
[1693762350057,6.1396,1629.1,1629.0,20.11335755]
[1693762350253,6.13918,1629.2,1629.0,20.11335755]
[1693762350447,6.1483881,1629.2,1629.1,14.74298]
[1693762350655,9.2177381,1629.2,1629.1,14.74298]
[1693762351759,12.08490162,1629.2,1629.1,14.74298]